[Event "5th Cesme Open 2017"]
[Site "Cesme"]
[Date "2017.06.19"]
[Round "1"]
[White "Morchiashvili, Bachana"]
[Black "Ertas, Deniz"]
[Result "1-0"]
[ECO "A70"]
[WhiteElo "2403"]
[BlackElo "1761"]
[Annotator "ChessBase"]
[PlyCount "52"]
[EventType "swiss"]
[EventCountry "TUR"]
[TimeControl "5400+30"]

1. d4 {[%emt 0:00:30] 63} g6 {[%emt 0:00:00] 63} 2. e4 {[%emt 0:00:00] 63} Bg7 {[%emt 0:00:30] 63} 3. c4 {[%emt 0:00:00] ]63} c5 {[%emt 0:00:30] ]63} 4. d5 {[%emt 0:00:30] ]63} d6 {[%emt 0:00:00] 66} 5. h3 {[%emt 0:01:30] ]6} Nf6 {[%emt 0:01:00] ]6} 6. Bd3 {[%emt 0:00:30] ]6} e6 {[%emt 0:03:30] 6]} 7. Nf3 {[%emt 0:00:30] ]6} O-O {[%emt 0:00:30] ]6} 8. O-O {[%emt 0:00:30] ]6} Re8 {[%emt 0:08:30] ]6} 9. Nc3 {[%emt 0:00:30] ]6} a6 {[%emt 0:02:30] ]6} 10. a4 {[%emt 0:06:30] ]6} exd5 {[%emt 0:07:30] ]6} 11. cxd5 {[%emt 0:00:30] ]6} Nbd7 {[%emt 0:06:30] ]} 12. Bf4 {[%emt 0:02:30] ]]} Ne5 {[%emt 0:04:30] ]]} 13. Nxe5 {[%emt 0:00:30] ]]} dxe5 {[%emt 0:00:00] ]]} 14. Be3 {[%emt 0:00:00] ]]} Qd6 {[%emt 0:02:00] ]]} 15. Qc2 {[%emt 0:06:00] ]]} Bd7 {[%emt 0:03:30] ]]} 16. Nb1 {[%emt 0:01:30] ]]} Rac8 {[%emt 0:07:30] ]]} 17. Na3 {[%emt 0:00:30] ]]} Nh5 {[%emt 0:04:30] ]]} 18. Qb3 {[%emt 0:09:30] ]]} Nf4 {[%emt 0:08:30] ]]} 19. Nc4 {[%emt 0:01:30] ]]]} Qf6 {[%emt 0:02:30] [%clk 0:36]0]} 20. Qxb7 {[%emt 0:13:30] %%c} Nxh3+ {[%emt 0:20:54] kk} 21. gxh3 {[%emt 0:02:30] ]]} Qd6 {[%emt 0:00:40] kk} 22. Qb3 {[%emt 0:00:30] 6]} Qf6 {[%emt 0:00:30] kk} 23. Qb7 {[%emt 0:00:00] 6 [%clk 0:49:0]} Bxh3 {[%emt 0:05:27] cc} 24. f3 {[%emt 0:03:00] 9]} Bxf1 {[%emt 0:02:04] cc} 25. Rxf1 {[%emt 0:00:30] 5]} Qh4 {[%emt 0:01:49]} 26. Kg2 {[%emt 0:02:30] 3]} Rb8 {[%emt 0:04:21]} 1-0

[Event "5th Cesme Open 2017"]
[Site "Cesme"]
[Date "2017.06.19"]
[Round "1"]
[White "Daloglu, Berkay"]
[Black "Ercihan, Ege"]
[Result "1-0"]
[ECO "D74"]
[WhiteElo "1659"]
[BlackElo "1395"]
[Annotator "NA"]
[PlyCount "127"]
[EventType "swiss"]
[EventCountry "TUR"]
[TimeControl "5400+30"]

1. Nf3 {[%emt 0:00:30] ].} Nf6 {[%emt 0:01:00] ].} 2. g3 {[%emt 0:00:00] ].} g6 {[%emt 0:00:00] ]} 3. Bg2 {[%emt 0:00:00] ]]} Bg7 {[%emt 0:00:00] ]]} 4. O-O {[%emt 0:00:30] ]]} O-O {[%emt 0:00:00] ]]} 5. c4 {[%emt 0:00:00] ]]} d5 {[%emt 0:00:00] ]]} 6. cxd5 {[%emt 0:05:00] ]]} Nxd5 {[%emt 0:00:00] ]]]} 7. Nc3 {[%emt 0:02:30] ]]]} c6 {[%emt 0:01:00] ]]]} 8. d4 {[%emt 0:10:30] ]]} Nd7 {[%emt 0:04:30] ]]} 9. Nxd5 {[%emt 0:07:30] ]]} cxd5 {[%emt 0:00:00] ]]} 10. Qb3 {[%emt 0:19:30] ]]]} Nb6 {[%emt 0:02:00] ]]]} 11. Bf4 {[%emt 0:06:30] ]]]} Bf5 {[%emt 0:12:30] ]]]} 12. Rac1 {[%emt 0:00:30] ]]]} Rc8 {[%emt 0:00:30] ]]} 13. Rxc8 {[%emt 0:01:30] ]]} Qxc8 {[%emt 0:00:30] ]]} 14. Rc1 {[%emt 0:00:30] ]]} Qe6 {[%emt 0:15:30] [%clk 1:00]0} 15. Qd1 {[%emt 0:28:46] kl} Rc8 {[%emt 0:02:30] 44} 16. b3 {[%emt 0:01:22] k [%clk 0:12:57]} Rxc1 {[%emt 0:16:30] ]2} 17. Bxc1 {[%emt 0:00:25]} Bb1 {[%emt 0:00:30] 7]} 18. a3 {[%emt 0:06:55]} Qc6 {[%emt 0:00:30] 3]} 19. b4 {[%emt 0:03:29] [%clk 0:01.20] ]} Be4 {[%emt 0:19:30] 3} 20. e3 {[%emt 0:02:43] [} Qc3 {[%emt 0:00:30] ]} 21. Qd2 {[%emt 0:00:30] [} Qb3 {[%emt 0:00:30] 0} 22. Ne1 {[%emt 0:00:30]} Nc4 {[%emt 0:00:30] 2} 23. Qe2 {[%emt 0:00:30]} Bxg2 {[%emt 0:00:30] 0} 24. Kxg2 {[%emt 0:00:30]} Nxa3 {[%emt 0:00:30] 0} 25. Bxa3 {[%emt 0:00:30]} Qxa3 {[%emt 0:00:30] 0} 26. Qb5 {[%emt 0:00:30]} Qc1 {[%emt 0:01:30] 0} 27. Qe8+ {[%emt 0:01:07]} Bf8 {[%emt 0:00:00] 4} 28. Nd3 {[%emt 0:00:06] [%clk 0:00.29]} Qc6 {[%emt 0:08:39]} 29. Qxc6 {[%emt 0:01:08]} bxc6 {[%emt 0:00:30]} 30. Ne5 {[%emt 0:00:30]} e6 {[%emt 0:00:30]} 31. Nxc6 {[%emt 0:00:30]} a6 {[%emt 0:00:30]} 32. Nb8 {[%emt 0:00:30]} Bxb4 {[%emt 0:00:30]} 33. Nxa6 {[%emt 0:00:30]} Bd6 {[%emt 0:00:30]} 34. Kf3 {[%emt 0:00:30]} Kf8 {[%emt 0:00:30]} 35. Ke2 {[%emt 0:00:30]} Ke7 {[%emt 0:00:30]} 36. Kd3 {[%emt 0:00:30]} Kd7 {[%emt 0:00:30]} 37. Kc3 {[%emt 0:00:30]} Ke7 {[%emt 0:00:30]} 38. Nc5 {[%emt 0:00:30]} Kf6 {[%emt 0:00:30]} 39. e4 {[%emt 0:00:30]} Bxc5 {[%emt 0:00:30]} 40. dxc5 {[%emt 0:00:30]} dxe4 {[%emt 0:00:30]} 41. Kd4 {[%emt 0:00:30]} Ke7 {[%emt 0:00:30]} 42. Kxe4 {[%emt 0:00:30]} f6 {[%emt 0:00:30]} 43. f4 {[%emt 0:00:30]} Kd7 {[%emt 0:00:30]} 44. g4 {[%emt 0:00:30]} Kc6 {[%emt 0:00:30]} 45. Kd4 {[%emt 0:00:30]} Kb5 {[%emt 0:00:30]} 46. h4 {[%emt 0:00:30]} Kc6 {[%emt 0:00:30]} 47. g5 {[%emt 0:00:30]} e5+ {[%emt 0:00:30]} 48. Ke4 {[%emt 0:00:30]} f5+ {[%emt 0:00:30]} 49. Kxe5 {[%emt 0:00:30]} Kxc5 {[%emt 0:00:30]} 50. Kf6 {[%emt 0:00:30]} Kd4 {[%emt 0:00:30]} 51. Kg7 {[%emt 0:00:30]} Ke4 {[%emt 0:00:30]} 52. Kxh7 {[%emt 0:00:30]} Kxf4 {[%emt 0:00:30]} 53. h5 {[%emt 0:00:18]} gxh5 {[%emt 0:00:38]} 54. g6 {[%emt 0:00:14]} h4 {[%emt 0:00:16]} 55. g7 {[%emt 0:00:06]} Kf3 {[%emt 0:01:00]} 56. g8=Q {[%emt 0:00:04]} f4 {[%emt 0:00:15]} 57. Qg1 {[%emt 0:00:43]} Ke2 {[%emt 0:00:56]} 58. Qh2+ {[%emt 0:00:51]} Ke3 {[%emt 0:00:09]} 59. Qxh4 {[%emt 0:00:16]} f3 {[%emt 0:00:07]} 60. Qe1+ {[%emt 0:00:13]} Kf4 {[%emt 0:00:22]} 61. Qf2 {[%emt 0:00:24]} Kg4 {[%emt 0:00:08]} 62. Kg6 {[%emt 0:00:12]} Kf4 {[%emt 0:00:09]} 63. Kf6 {[%emt 0:00:07]} Kg4 {[%emt 0:00:34]} 64. Ke5 1-0

[Event "5th Cesme Open 2017"]
[Site "Cesme"]
[Date "2017.06.19"]
[Round "1"]
[White "Kayis, Cahit Sadi"]
[Black "Karabas, Baris"]
[Result "0-1"]
[ECO "D36"]
[WhiteElo "1519"]
[BlackElo "1598"]
[Annotator "NA"]
[PlyCount "74"]
[EventType "swiss"]
[EventCountry "TUR"]
[TimeControl "5400+30"]

1. d4 {[%emt 0:00:30] ]} d5 {[%emt 0:02:00] ]} 2. c4 {[%emt 0:00:00] ]} c6 {[%emt 0:00:00] ]} 3. Nc3 {[%emt 0:01:00] ]} Nf6 {[%emt 0:00:00] ]} 4. Nf3 {[%emt 0:01:30] ]} e6 {[%emt 0:00:30] ]} 5. Bg5 {[%emt 0:00:30] ]]} Nbd7 {[%emt 0:00:00] ]]} 6. e3 {[%emt 0:02:30] ]]} Be7 {[%emt 0:05:00] ]]} 7. cxd5 {[%emt 0:04:30] ]]} exd5 {[%emt 0:00:30] ]]} 8. Bd3 {[%emt 0:00:30] ]} O-O {[%emt 0:02:30] ]]} 9. Qc2 {[%emt 0:01:30] ]]} h6 {[%emt 0:01:30] ]]} 10. Bh4 {[%emt 0:01:30] ]]} Re8 {[%emt 0:10:30] ]]} 11. O-O {[%emt 0:01:30] ]]} Ne4 {[%emt 0:14:30] ]]} 12. Bxe7 {[%emt 0:00:30] ]]]} Qxe7 {[%emt 0:00:30] ]]]} 13. Ne5 {[%emt 0:13:30] ]]]} Nxe5 {[%emt 0:04:30] ]]} 14. Bxe4 {[%emt 0:00:30] ]]} dxe4 {[%emt 0:00:30] ]]} 15. dxe5 {[%emt 0:02:30] ]]} Qxe5 {[%emt 0:01:30] ]]} 16. Rad1 {[%emt 0:02:30] ]]} h5 {[%emt 0:10:30] ]]} 17. Rd4 {[%emt 0:01:30] ]]} Bf5 {[%emt 0:08:30] ]]} 18. Rfd1 {[%emt 0:01:30] [%clk 1:01]]} h4 {[%emt 0:09:30] [cc} 19. Ne2 {[%emt 0:04:30] [[c} g5 {[%emt 0:10:21] lk} 20. Rd6 {[%emt 0:03:30] 9 [%clk 0:47:0] .[} Be6 {[%emt 0:07:16] cc} 21. Nc3 {[%emt 0:07:30] 3]} Bc4 {[%emt 0:07:22] cc} 22. R6d4 {[%emt 0:02:30] 1]} Bd3 {[%emt 0:02:19] c [%clk 0:01:14] 0} 23. Qb3 {[%emt 0:11:30] ]} Rab8 {[%emt 0:00:58]} 24. Rd7 {[%emt 0:00:30] ]} Re7 {[%emt 0:00:30]} 25. Rd4 {[%emt 0:00:30] 4} Rbe8 {[%emt 0:00:30]} 26. Na4 {[%emt 0:00:30] 4} Qb5 {[%emt 0:00:30]} 27. Rb4 {[%emt 0:00:30] 4} Qa5 {[%emt 0:00:30]} 28. Rc1 {[%emt 0:00:30] 1} Qd8 {[%emt 0:00:30]} 29. Rxb7 {[%emt 0:00:30] ]} Rxb7 {[%emt 0:00:30]} 30. Qxb7 {[%emt 0:00:30] 4} Bb5 {[%emt 0:00:30]} 31. Nc5 {[%emt 0:00:30] 1} Re7 {[%emt 0:00:30]} 32. Qxe7 {[%emt 0:00:30] ]} Qxe7 {[%emt 0:00:30]} 33. Nb3 {[%emt 0:00:30] 4} Qd6 {[%emt 0:00:30]} 34. Nd4 {[%emt 0:00:30] 4} a6 {[%emt 0:00:30]} 35. b3 {[%emt 0:00:30] 4} c5 {[%emt 0:00:30]} 36. Nf5 {[%emt 0:00:30] 1} Qf6 {[%emt 0:00:30]} 37. Rxc5 {[%emt 0:00:30] ]} Qa1+ {[%emt 0:00:00] [%clk 0:02.06]} 0-1

[Event "5th Cesme Open 2017"]
[Site "Cesme"]
[Date "2017.06.19"]
[Round "1"]
[White "Aydemir, Cem"]
[Black "Taskin, Arda"]
[Result "1/2-1/2"]
[ECO "E81"]
[WhiteElo "1430"]
[BlackElo "1516"]
[Annotator "NA"]
[PlyCount "113"]
[EventType "swiss"]
[EventCountry "TUR"]
[TimeControl "5400+30"]

1. d4 {[%emt 0:00:30] 4.]} Nf6 {[%emt 0:01:00] 4.]} 2. c4 {[%emt 0:00:00] 4.]} g6 {[%emt 0:00:00] 4.} 3. f3 {[%emt 0:00:00] 4..} Bg7 {[%emt 0:00:00] 4..} 4. e4 {[%emt 0:00:30] 4..} d6 {[%emt 0:00:30] 4..} 5. Nc3 {[%emt 0:00:30] 4..} O-O {[%emt 0:00:00] 4..} 6. Bd3 {[%emt 0:00:30] 4.} Nc6 {[%emt 0:00:00] 44} 7. Nge2 {[%emt 0:00:30] 44} e5 {[%emt 0:01:30] 44} 8. d5 {[%emt 0:03:30] 44} Nb8 {[%emt 0:07:30] 44} 9. O-O {[%emt 0:10:30] 44} Nbd7 {[%emt 0:10:30] 44} 10. Be3 {[%emt 0:04:30] 44} Ne8 {[%emt 0:10:30] 44} 11. b4 {[%emt 0:13:30] 44} b6 {[%emt 0:12:30] 44} 12. Qc2 {[%emt 0:08:30] 44} Bb7 {[%emt 0:06:30] 44} 13. Rac1 {[%emt 0:06:30] [%clk 0:47]2]} Rc8 {[%emt 0:06:30] %%%} 14. Qb1 {[%emt 0:01:30] %%%} c6 {[%emt 0:01:30] %} 15. dxc6 {[%emt 0:06:30] ]} Bxc6 {[%emt 0:00:30] ]} 16. Nd5 {[%emt 0:03:30] ]} Ndf6 {[%emt 0:06:30] ]} 17. Nec3 {[%emt 0:03:30] ]} Nxd5 {[%emt 0:04:30] [%clk 0:29]]} 18. cxd5 {[%emt 0:08:30] %%} Bd7 {[%emt 0:00:30]} 19. Ba6 {[%emt 0:01:30]} Rc7 {[%emt 0:05:30]} 20. Nb5 {[%emt 0:02:30]} Bxb5 {[%emt 0:00:30]} 21. Bxb5 {[%emt 0:00:00] [%clk 0:14.50]} f6 {[%emt 0:13:08] k} 22. Rc6 {[%emt 0:09:10] k} Rff7 {[%emt 0:00:30] k} 23. Rfc1 {[%emt 0:00:30] k} Rxc6 {[%emt 0:00:30] k} 24. Rxc6 {[%emt 0:00:30] k} Rc7 {[%emt 0:00:30]} 25. Qc2 {[%emt 0:00:30]} Kf8 {[%emt 0:03:06]} 26. Qa4 {[%emt 0:02:18] [%clk 0:01.32]} Qb8 {[%emt 0:05:58]} 27. Qc2 {[%emt 0:12:00]} Qc8 {[%emt 0:00:30]} 28. a4 {[%emt 0:00:30]} Ke7 {[%emt 0:00:30]} 29. Qc4 {[%emt 0:00:30]} Rxc6 {[%emt 0:00:30]} 30. Bxc6 {[%emt 0:00:30]} Nc7 {[%emt 0:00:30]} 31. a5 {[%emt 0:00:30]} bxa5 {[%emt 0:00:30]} 32. bxa5 {[%emt 0:00:30]} Qb8 {[%emt 0:00:30]} 33. Ba4 {[%emt 0:00:30]} Qb7 {[%emt 0:00:30]} 34. Qc6 {[%emt 0:00:30]} Qxc6 {[%emt 0:00:30]} 35. Bxc6 {[%emt 0:00:30]} a6 {[%emt 0:00:30]} 36. Bb6 {[%emt 0:00:30]} Kd8 {[%emt 0:00:30]} 37. Bb7 {[%emt 0:00:30]} Kd7 {[%emt 0:00:30]} 38. Bxc7 {[%emt 0:00:30]} Kxc7 {[%emt 0:00:30]} 39. Bxa6 {[%emt 0:00:30]} Bh6 {[%emt 0:00:30]} 40. Bd3 {[%emt 0:00:30]} Bd2 {[%emt 0:00:30]} 41. a6 {[%emt 0:00:30]} Kb6 {[%emt 0:00:30]} 42. Kf2 {[%emt 0:00:30]} Bb4 {[%emt 0:00:30]} 43. Ke2 {[%emt 0:00:30]} Bc5 {[%emt 0:00:30]} 44. g3 {[%emt 0:00:26]} g5 {[%emt 0:00:46]} 45. Kf1 {[%emt 0:01:07]} Ka5 {[%emt 0:00:18]} 46. Kg2 {[%emt 0:00:21]} h5 {[%emt 0:01:49]} 47. f4 {[%emt 0:01:04]} gxf4 {[%emt 0:00:13]} 48. gxf4 {[%emt 0:00:03]} exf4 {[%emt 0:00:06]} 49. Kf3 {[%emt 0:00:23]} Be3 {[%emt 0:00:47]} 50. a7 {[%emt 0:00:23]} Bxa7 {[%emt 0:00:07]} 51. Kxf4 {[%emt 0:00:05]} Bd4 {[%emt 0:00:15]} 52. Kf5 {[%emt 0:01:38]} Be5 {[%emt 0:02:06]} 53. Be2 {[%emt 0:00:30]} h4 {[%emt 0:00:50]} 54. h3 {[%emt 0:00:29]} Kb4 {[%emt 0:00:06]} 55. Bg4 {[%emt 0:00:24]} Kc5 {[%emt 0:00:21]} 56. Kg6 {[%emt 0:00:29]} Kd4 {[%emt 0:00:14]} 57. Bf5 1/2-1/2